fUST/lending_fUST_20250610
["ID","MTS","AMOUNT","RATE_DAILY","PERIOD"]
[365212834,1749537038596,-460.0,0.00021095,4]
[365212836,1749537038605,-460.0,0.00021095,4]
[365212838,1749537038614,-460.0,0.00021095,4]
[365212840,1749537038624,-410.28330677,0.00021095,4]
[365212842,1749537038633,-460.0,0.00021095,4]
[365212844,1749537038643,-460.0,0.00021095,4]
[365212847,1749537038653,-528.45698794,0.00021095,4]
[365212849,1749537038662,-460.0,0.00021095,4]
[365212851,1749537038671,-460.0,0.00021095,4]
[365212853,1749537038680,-460.0,0.00021095,4]
[365212855,1749537038689,-442.64261384,0.00021095,4]
[365212856,1749537038698,-460.0,0.00021095,4]
[365212858,1749537038708,-545.51898987,0.00021095,4]
[365212860,1749537038717,-460.0,0.00021095,4]
[365212862,1749537038727,-395.90355139,0.00021095,4]
[365212864,1749537038736,-460.0,0.00021095,4]
[365212867,1749537038745,-350.23895878,0.00021095,4]
[365212868,1749537038755,-460.0,0.00021095,4]
[365212870,1749537038766,-430.0,0.00021095,4]
[365212872,1749537038776,-340.0,0.00021095,4]
[365212874,1749537038785,-212.23186088,0.00021095,4]
[365212876,1749537038794,-460.0,0.00021095,4]
[365212878,1749537038805,-460.0,0.00021095,4]
[365212880,1749537038815,-460.0,0.00021095,4]
[365212882,1749537038825,-460.0,0.00021095,4]
[365212884,1749537038835,-410.0,0.00021095,4]
[365212886,1749537038844,-460.0,0.00021095,4]
[365212888,1749537038854,-763.1,0.00021095,4]
[365212890,1749537038863,-430.0,0.00021095,4]
[365212892,1749537038873,-440.0,0.00021095,4]
[365212894,1749537038882,-460.0,0.00021095,4]
[365212896,1749537038892,-401.27672285,0.00021095,4]
[365212898,1749537038902,-460.0,0.00021095,4]
[365212899,1749537038919,-260.0,0.00021095,4]
[365212900,1749537038929,-367.17528736,0.00021095,4]
[365212901,1749537038938,-440.0,0.00021095,4]
[365212902,1749537038948,-440.0,0.00021095,4]
[365212903,1749537038957,-460.0,0.00021095,4]
[365212904,1749537038966,-460.0,0.00021095,4]
[365212905,1749537038976,-460.0,0.00021095,4]
[365212906,1749537038986,-522.37,0.00021095,2]
[365212907,1749537038996,-460.0,0.00021095,4]
[365212908,1749537039006,-440.0,0.00021095,4]
[365212909,1749537039015,-380.16860411,0.00021095,4]
[365212910,1749537039026,-507.69947186,0.00021095,4]
[365212911,1749537039045,-460.0,0.00021095,4]
[365212912,1749537039054,-440.0,0.00021095,4]
[365212913,1749537039064,-300.0,0.00021095,4]
[365212914,1749537039074,-632.99,0.00021095,4]
[365212915,1749537039084,-728.53,0.00021095,4]
[365212916,1749537039093,-2522.83,0.00021095,4]
[365212917,1749537039103,-460.0,0.00021095,4]
[365212918,1749537039112,-460.0,0.00021095,4]
[365212919,1749537039122,-440.0,0.00021095,4]
[365212920,1749537039132,-460.0,0.00021095,4]
[365212921,1749537039142,-482.51268549,0.00021095,4]
[365212922,1749537039151,-645.09,0.00021095,4]
[365212923,1749537039161,-516.38224862,0.00021095,4]
[365212924,1749537039170,-276.50556625,0.00021095,4]
[365212925,1749537039180,-460.0,0.00021095,4]
[365212926,1749537039190,-440.0,0.00021095,4]
[365212927,1749537039199,-263.07023887,0.00021095,4]
[365212928,1749537039209,-460.0,0.00021095,4]
[365212929,1749537039219,-440.0,0.00021095,4]
[365212930,1749537039229,-460.0,0.00021095,4]
[365212931,1749537039240,-852.0,0.00021095,4]
[365212932,1749537039250,-460.0,0.00021095,4]
[365212933,1749537039260,-440.0,0.00021095,4]
[365212934,1749537039269,-554.67845551,0.00021095,4]
[365212935,1749537039278,-460.0,0.00021095,4]
[365212936,1749537039288,-460.0,0.00021095,4]
[365212937,1749537039298,-532.31887326,0.00021095,4]
[365212938,1749537039308,-460.0,0.00021095,4]
[365212939,1749537039317,-460.0,0.00021095,4]
[365212940,1749537039326,-440.0,0.00021095,4]
[365212941,1749537039336,-590.13,0.00021095,4]
[365212942,1749537039345,-460.0,0.00021095,4]
[365212943,1749537039354,-460.0,0.00021095,4]
[365212944,1749537039363,-297.76637113,0.00021095,4]
[365212945,1749537039373,-846.52,0.00021095,4]
[365212946,1749537039383,-460.0,0.00021095,4]
[365212947,1749537039393,-460.0,0.00021095,4]
[365212948,1749537039402,-460.0,0.00021095,4]
[365212949,1749537039534,-460.0,0.00021095,4]
[365212950,1749537039547,-460.0,0.00021095,4]
[365212951,1749537039556,-460.0,0.00021095,4]
[365212952,1749537039567,-460.0,0.00021095,4]
[365212956,1749537039577,-338.04500064,0.00021095,4]
[365212958,1749537039587,-225.49271411,0.00021095,4]
[365212960,1749537039597,-348.99036104,0.00021095,4]
[365212962,1749537039606,-460.0,0.00021095,4]
[365212965,1749537039626,-460.0,0.00021095,4]
[365212967,1749537039637,-460.0,0.00021095,4]
[365212969,1749537039648,-281.09233479,0.00021107,4]
[365212971,1749537039658,-1145.43,0.00021183,2]
[365212973,1749537039668,-281.09233479,0.00021279,5]
[365212975,1749537039678,-440.0,0.00021369,4]
[365212977,1749537039688,-431.90145167,0.00021369,4]
[365212978,1749537039698,-460.0,0.00021369,4]
[365212979,1749537039708,-460.0,0.00021369,4]
[365212980,1749537039718,-460.0,0.00021369,4]
[365212981,1749537039728,-360.0,0.00021369,4]
[365212982,1749537039739,-472.19668985,0.00021369,4]
[365212983,1749537039750,-460.0,0.00021369,4]
[365212984,1749537039760,-460.0,0.00021369,4]
[365212985,1749537039769,-460.0,0.00021369,4]
[365212986,1749537039779,-380.8931661,0.00021369,4]
[365212987,1749537039790,-460.0,0.00021369,4]
[365212988,1749537039799,-590.0,0.00021369,4]
[365212989,1749537039809,-460.0,0.00021369,4]
[365212990,1749537039819,-460.0,0.00021369,4]
[365212991,1749537039829,-460.0,0.00021369,4]
[365212992,1749537039839,-460.0,0.00021369,4]
[365212993,1749537039849,-460.0,0.00021369,4]
[365212995,1749537039858,-403.23395016,0.00021369,4]
[365212996,1749537039868,-763.1,0.00021369,4]
[365212997,1749537039878,-460.0,0.00021369,4]
[365212998,1749537039887,-460.0,0.00021369,4]
[365212999,1749537039897,-460.0,0.00021369,4]
[365213000,1749537039907,-326.71376046,0.00021369,4]
[365213001,1749537039917,-413.85282969,0.00021369,4]
[365213003,1749537039926,-460.0,0.00021369,4]
[365213005,1749537039936,-632.99,0.00021369,4]
[365213007,1749537039947,-728.53,0.00021369,4]
[365213009,1749537039957,-2522.83,0.00021369,4]
[365213012,1749537039967,-360.0,0.00021369,4]
[365213013,1749537039977,-377.56767647,0.00021369,4]
[365213015,1749537039987,-460.0,0.00021369,4]
[365213017,1749537039997,-645.09,0.00021369,4]
[365213019,1749537040008,-460.0,0.00021369,4]
[365213020,1749537040018,-460.0,0.00021369,4]
[365213021,1749537040028,-460.0,0.00021369,4]
[365213022,1749537040038,-852.0,0.00021369,4]
[365213023,1749537040048,-460.0,0.00021369,4]
[365213024,1749537040058,-460.0,0.00021369,4]
[365213025,1749537040067,-460.0,0.00021369,4]
[365213026,1749537040077,-460.0,0.00021369,4]
[365213027,1749537040087,-590.13,0.00021369,4]
[365213028,1749537040097,-348.08143489,0.00021369,4]
[365213029,1749537040107,-460.0,0.00021369,4]
[365213030,1749537040116,-846.52,0.00021369,4]
[365213031,1749537040126,-460.0,0.00021369,4]
[365213032,1749537040135,-460.0,0.00021369,4]
[365213033,1749537040145,-346.29265577,0.00021369,4]
[365213034,1749537040156,-460.0,0.00021369,4]
[365213035,1749537040165,-460.0,0.00021369,4]
[365213036,1749537040175,-460.0,0.00021369,4]
[365213037,1749537040185,-460.0,0.00021369,4]
[365213038,1749537040194,-460.0,0.00021369,4]
[365213039,1749537040205,-460.0,0.00021369,4]
[365213040,1749537040218,-200.0,0.00021369,4]
[365213041,1749537040228,-281.09233479,0.00021452,5]
[365213042,1749537040239,-1279.1504716,0.00021534,2]
[365213043,1749537040249,-164.11610672,0.0002154,2]
[365213044,1749537040259,-443.92,0.00021624,3]
[365213045,1749537040269,-221.96,0.00021624,3]
[365213046,1749537040279,-665.88,0.00021624,3]
[365213047,1749537040289,-281.09233479,0.00021624,5]
[365213048,1749537040299,-420.0,0.00021627,2]
[365213049,1749537040309,-420.0,0.00021627,2]
[365213050,1749537040321,-417.3357614,0.00021633,2]
[365213051,1749537040331,-500.0,0.00021633,2]
[365213052,1749537040341,-275.83100843,0.00021633,2]
[365213053,1749537040351,-500.0,0.00021633,2]
[365213054,1749537040361,-1077.86833016,0.00021633,2]
[365213055,1749537040371,-231.10977753,0.00021633,2]
[365213056,1749537040381,-500.0,0.00021633,2]
[365213057,1749537040391,-919.84502178,0.00021633,2]
[365213058,1749537040401,-1077.86833016,0.00021633,2]
[365213059,1749537040411,-186.15079934,0.00021633,2]
[365213060,1749537040421,-500.0,0.00021633,2]
[365213061,1749537040431,-919.84502178,0.00021633,2]
[365213062,1749537040441,-415.00426348,0.00021633,2]
[365213063,1749537040451,-1077.86833016,0.00021633,2]
[365213064,1749537040464,-500.0,0.00021633,2]
[365213065,1749537040474,-500.0,0.00021633,2]
[365213066,1749537040484,-919.84502178,0.00021633,2]
[365213067,1749537040494,-1077.86833016,0.00021633,2]
[365213068,1749537040505,-500.0,0.00021633,2]
[365213069,1749537040514,-1077.86833016,0.00021633,2]
[365213070,1749537040524,-919.84502178,0.00021633,2]
[365213071,1749537040535,-500.0,0.00021633,2]
[365213072,1749537040544,-500.0,0.00021633,2]
[365213073,1749537040554,-1077.86833016,0.00021633,2]
[365213074,1749537040563,-500.0,0.00021633,2]
[365213075,1749537040573,-500.0,0.00021633,2]
[365213076,1749537040583,-919.84502178,0.00021633,2]
[365213077,1749537040593,-500.0,0.00021633,2]
[365213078,1749537040602,-1077.86833016,0.00021633,2]
[365213079,1749537040613,-919.84502178,0.00021633,2]
[365213080,1749537040625,-500.0,0.00021633,2]
[365213081,1749537040636,-1077.86833016,0.00021633,2]
[365213082,1749537040646,-500.0,0.00021633,2]
[365213083,1749537040656,-1077.86833016,0.00021633,2]
[365213084,1749537040666,-919.84502178,0.00021633,2]
[365213085,1749537040678,-1077.86833016,0.00021633,2]
[365213086,1749537040688,-500.0,0.00021633,2]
[365213087,1749537040698,-919.84502178,0.00021633,2]
[365213088,1749537040708,-500.0,0.00021633,2]
[365213089,1749537040719,-1077.86833016,0.00021633,2]
[365213090,1749537040728,-919.84502178,0.00021633,2]
[365213091,1749537040738,-500.0,0.00021633,2]
[365213092,1749537040749,-1077.86833016,0.00021633,2]
[365213093,1749537040759,-919.84502178,0.00021633,2]
[365213094,1749537040769,-500.0,0.00021633,2]
[365213095,1749537040778,-919.84502178,0.00021633,2]
[365213096,1749537040788,-500.0,0.00021633,2]
[365213097,1749537040799,-1077.86833016,0.00021633,2]
[365213098,1749537040808,-919.84502178,0.00021633,2]
[365213099,1749537040818,-500.0,0.00021633,2]
[365213100,1749537040827,-1077.86833016,0.00021633,2]
[365213101,1749537040837,-919.84502178,0.00021633,2]
[365213102,1749537040847,-500.0,0.00021633,2]
[365213103,1749537040856,-500.0,0.00021633,2]
[365213104,1749537040866,-919.84502178,0.00021633,2]
[365213105,1749537040875,-1077.86833016,0.00021633,2]
[365213106,1749537040885,-500.0,0.00021633,2]
[365213107,1749537040894,-919.84502178,0.00021633,2]
[365213108,1749537040903,-1077.86833016,0.00021633,2]
[365213109,1749537040914,-500.0,0.00021633,2]
[365213110,1749537040924,-1077.86833016,0.00021633,2]
[365213111,1749537040933,-919.84502178,0.00021633,2]
[365213112,1749537040943,-500.0,0.00021633,2]
[365213113,1749537040953,-1077.86833016,0.00021633,2]
[365213114,1749537040963,-500.0,0.00021633,2]
[365213115,1749537040972,-919.84502178,0.00021633,2]
[365213116,1749537040982,-157.315,0.0002164,2]
[365213117,1749537040993,-330.16297383,0.00021643,4]
[365213118,1749537041002,-226.4949384,0.00021643,4]
[365213119,1749537041011,-460.0,0.00021643,4]
[365213120,1749537041021,-460.0,0.00021643,4]
[365213121,1749537041031,-340.0,0.00021643,4]
[365213122,1749537041041,-460.0,0.00021643,4]
[365213123,1749537041050,-460.0,0.00021643,4]
[365213124,1749537041062,-763.1,0.00021643,4]
[365213125,1749537041072,-360.0,0.00021643,4]
[365213126,1749537041082,-460.0,0.00021643,4]
[365213127,1749537041092,-460.0,0.00021643,4]
[365213128,1749537041101,-460.0,0.00021643,4]
[365213129,1749537041111,-632.99,0.00021643,4]
[365213130,1749537041121,-728.53,0.00021643,4]
[365213131,1749537041130,-2522.83,0.00021643,4]
[365213132,1749537041139,-460.0,0.00021643,4]
[365213133,1749537041150,-645.09,0.00021643,4]
[365213134,1749537041159,-198.15871805,0.00021643,4]
[365213135,1749537041169,-460.0,0.00021643,4]
[365213136,1749537041179,-460.0,0.00021643,4]
[365213137,1749537041189,-852.0,0.00021643,4]
[365213138,1749537041199,-460.0,0.00021643,4]
[365213139,1749537041209,-460.0,0.00021643,4]
[365213140,1749537041220,-460.0,0.00021643,4]
[365213141,1749537041230,-460.0,0.00021643,4]
[365213142,1749537041239,-590.13,0.00021643,4]
[365213143,1749537041249,-460.0,0.00021643,4]
[365213144,1749537041259,-846.52,0.00021643,4]
[365213145,1749537041269,-460.0,0.00021643,4]
[365213146,1749537041278,-471.62640606,0.00021643,4]
[365213147,1749537041287,-460.0,0.00021643,4]
[365213148,1749537041297,-460.0,0.00021643,4]
[365213149,1749537041306,-460.0,0.00021643,4]
[365213150,1749537041316,-360.0,0.00021643,4]
[365213151,1749537041325,-173.26099967,0.00021643,4]
[365213152,1749537041335,-260.0,0.00021643,4]
[365213153,1749537041344,-424.12530924,0.00021656,2]
[365213154,1749537041353,-842.5625,0.00021656,2]
[365213155,1749537041363,-834.9046531,0.00021656,2]
[365213156,1749537041373,-229.6792923,0.00021656,2]
[365213157,1749537041383,-160.0,0.00021656,2]
[365213158,1749537041393,-1322.0,0.00021658,2]
[365213159,1749537041402,-500.0,0.00021673,2]
[365213160,1749537041411,-513.75607157,0.00021673,2]
[365213161,1749537041420,-160.0,0.00021678,2]
[365213162,1749537041429,-160.0,0.00021678,2]
[365213163,1749537041439,-160.0,0.00021678,2]
[365213164,1749537041447,-213.1263252,0.00021678,2]
[365213165,1749537041460,-339.22,0.000217,2]
[365213166,1749537041470,-281.09233479,0.00021797,6]
[365213167,1749537041479,-406.0,0.0002181,7]
[365213168,1749537041488,-1322.0,0.00021815,2]
[365213169,1749537041499,-555.16539228,0.00021917,4]
[365213170,1749537041508,-460.0,0.00021917,4]
[365213171,1749537041518,-460.0,0.00021917,4]
[365213172,1749537041528,-763.1,0.00021917,4]
[365213173,1749537041538,-460.0,0.00021917,4]
[365213174,1749537041548,-460.0,0.00021917,4]
[365213175,1749537041557,-438.07395948,0.00021917,4]
[365213176,1749537041566,-632.99,0.00021917,4]
[365213177,1749537041576,-728.53,0.00021917,4]
[365213178,1749537041585,-2522.83,0.00021917,4]
[365213180,1749537041594,-460.0,0.00021917,4]
[365213181,1749537041604,-645.09,0.00021917,4]
[365213182,1749537041613,-460.0,0.00021917,4]
[365213183,1749537041622,-852.0,0.00021917,4]
[365213184,1749537041632,-446.69418797,0.00021917,4]
[365213185,1749537041641,-460.0,0.00021917,4]
[365213186,1749537041650,-227.32093827,0.00021917,4]
[365213187,1749537041659,-407.19683907,0.00021917,4]
[365213188,1749537041669,-590.13,0.00021917,4]
[365213189,1749537041678,-460.0,0.00021917,4]
[365213190,1749537041687,-846.52,0.00021917,4]
[365213191,1749537041697,-460.0,0.00021917,4]
[365213192,1749537041707,-460.0,0.00021917,4]
[365213193,1749537041717,-460.0,0.00021917,4]
[365213194,1749537041728,-406.0,0.00021933,7]
[365213195,1749537041738,-281.09233479,0.00021969,6]
[365213196,1749537041749,-744.6,0.00021979,6]
[365213197,1749537041759,-167.131669,0.00022,7]
[365213198,1749537041768,-167.131669,0.00022,7]
[365213199,1749537041778,-36025.94320734,0.00022,2]
[365213200,1749537041787,-44284.09362124,0.00022,2]
[365213201,1749537041796,-4254.02721369,0.00022,7]
[365213202,1749537041806,-160.86915986,0.00022,2]
[365213203,1749537041815,-406.0,0.00022056,7]
[365213204,1749537041825,-744.6,0.00022079,6]
[365213205,1749537041834,-1322.0,0.00022111,2]
[365213206,1749537041844,-281.09233479,0.00022141,6]
[365213207,1749537041854,-1718.15,0.00022146,2]
[365213208,1749537041863,-744.6,0.00022179,5]
[365213209,1749537041873,-406.0,0.0002218,7]
[365213210,1749537041882,-460.0,0.00022191,4]
[365213211,1749537041891,-460.0,0.00022191,4]
[365213212,1749537041901,-763.1,0.00022191,4]
[365213213,1749537041910,-460.0,0.00022191,4]
[365213214,1749537041919,-460.0,0.00022191,4]
[365213215,1749537041929,-632.99,0.00022191,4]
[365213216,1749537041938,-728.53,0.00022191,4]
[365213217,1749537041948,-2522.83,0.00022191,4]
[365213218,1749537041957,-349.5956371,0.00022191,4]
[365213219,1749537041967,-645.09,0.00022191,4]
[365213220,1749537041976,-460.0,0.00022191,4]
[365213221,1749537041986,-852.0,0.00022191,4]
[365213222,1749537041996,-460.0,0.00022191,4]
[365213223,1749537042006,-590.13,0.00022191,4]
[365213224,1749537042016,-460.0,0.00022191,4]
[365213225,1749537042025,-846.52,0.00022191,4]
[365213226,1749537042035,-460.0,0.00022191,4]
[365213227,1749537042045,-460.0,0.00022191,4]
[365213228,1749537042054,-460.0,0.00022191,4]
[365213229,1749537042064,-500.0,0.00022221,2]
[365213230,1749537042073,-744.6,0.00022279,7]
[365213231,1749537042085,-406.0,0.00022303,7]
[365213232,1749537042095,-281.09233479,0.00022314,7]
[365213233,1749537042105,-151.532531,0.00022331,7]
[365213234,1749537042114,-744.6,0.00022379,4]
[365213235,1749537042123,-406.0,0.00022426,7]
[365213236,1749537042133,-400.0,0.00022465,4]
[365213237,1749537042143,-460.0,0.00022465,4]
[365213238,1749537042152,-763.1,0.00022465,4]
[365213239,1749537042162,-460.0,0.00022465,4]
[365213240,1749537042171,-460.0,0.00022465,4]
[365213241,1749537042181,-632.99,0.00022465,4]
[365213242,1749537042191,-728.53,0.00022465,4]
[365213243,1749537042200,-2522.83,0.00022465,4]
[365213244,1749537042210,-645.09,0.00022465,4]
[365213245,1749537042220,-557.57388858,0.00022465,4]
[365213246,1749537042231,-852.0,0.00022465,4]
[365213247,1749537042240,-460.0,0.00022465,4]
[365213248,1749537042249,-590.13,0.00022465,4]
[365213249,1749537042259,-314.70235338,0.00022465,4]
[365213250,1749537042269,-846.52,0.00022465,4]
[365213251,1749537042278,-157.29404699,0.00022465,4]
[365213252,1749537042288,-460.0,0.00022465,4]
[365213253,1749537042297,-460.0,0.00022465,4]
[365213254,1749537042307,-744.6,0.00022479,4]
[365213255,1749537042316,-281.09233479,0.00022486,7]
[365213256,1749537042325,-167.131669,0.000225,7]
[365213257,1749537042335,-167.131669,0.000225,7]
[365213258,1749537042345,-406.0,0.00022549,7]
[365213259,1749537042355,-744.6,0.00022579,3]
[365213260,1749537042364,-207.4,0.00022583,2]
[365213261,1749537042374,-1258.54074631,0.00022618,2]
[365213263,1749537042384,-281.09233479,0.00022659,7]
[365213264,1749537042393,-406.0,0.00022673,7]
[365213265,1749537042512,-1322.0,0.00022676,2]
[365213266,1749537042523,-1322.0,0.00022678,2]
[365213267,1749537042534,-744.6,0.00022679,5]
[365213268,1749537042544,-151.0,0.000227,5]
[365213269,1749537042554,-48490.17,0.000227,2]
[365213270,1749537042563,-460.0,0.00022739,4]
[365213272,1749537042573,-763.1,0.00022739,4]
[365213273,1749537042582,-340.0,0.00022739,4]
[365213274,1749537042591,-460.0,0.00022739,4]
[365213275,1749537042601,-632.99,0.00022739,4]
[365213276,1749537042611,-728.53,0.00022739,4]
[365213277,1749537042621,-2522.83,0.00022739,4]
[365213278,1749537042630,-645.09,0.00022739,4]
[365213279,1749537042640,-852.0,0.00022739,4]
[365213280,1749537042649,-460.0,0.00022739,4]
[365213281,1749537042658,-590.13,0.00022739,4]
[365213282,1749537042667,-846.52,0.00022739,4]
[365213283,1749537042676,-460.0,0.00022739,4]
[365213284,1749537042686,-460.0,0.00022739,4]
[365213285,1749537042695,-744.6,0.00022779,4]
[365213286,1749537042704,-2160.0,0.00022788,2]
[365213287,1749537042714,-405.0,0.00022788,2]
[365213288,1749537042725,-963.0,0.00022788,2]
[365213289,1749537042734,-371.1330319,0.00022795,2]
[365213290,1749537042744,-406.0,0.00022796,7]
[365213291,1749537042755,-281.09233479,0.00022831,8]
[365213292,1749537042765,-1322.0,0.00022862,2]
[365213293,1749537042774,-744.6,0.00022879,6]
[365213294,1749537042783,-151.0,0.000229,9]
[365213295,1749537042793,-1322.0,0.00022914,2]
[365213296,1749537042802,-406.0,0.00022919,7]
[365213297,1749537042811,-15767.98912434,0.0002295,7]
[365213299,1749537042820,-15767.98912434,0.0002295,7]
[365213301,1749537042830,-375.6232858,0.00022973,2]
[365213303,1749537042839,-500.0,0.00022973,2]
[365213305,1749537042849,-500.0,0.00022973,2]
[365213307,1749537042858,-500.0,0.00022973,2]
[365213309,1749537042867,-500.0,0.00022973,2]
[365213311,1749537042877,-500.0,0.00022973,2]
[365213313,1749537042886,-500.0,0.00022973,2]
[365213315,1749537042895,-600.0,0.00022973,2]
[365213317,1749537042904,-744.6,0.00022979,4]
[365213319,1749537042913,-500.0,0.00022989,2]
[365213321,1749537042923,-565.37558434,0.00022989,2]
[365213323,1749537042932,-500.0,0.00022989,2]
[365213325,1749537042941,-500.0,0.00022989,2]
[365213327,1749537042950,-500.0,0.00022989,2]
[365213329,1749537042959,-500.0,0.00022989,2]
[365213331,1749537042968,-500.0,0.00022989,2]
[365213333,1749537042978,-500.0,0.00022989,2]
[365213335,1749537042987,-398406.94044691,0.0002299,2]
[365213337,1749537042996,-887.84,0.00022994,3]
[365213339,1749537043006,-443.92,0.00022994,3]
[365213341,1749537043015,-339.22,0.00023,7]
[365213343,1749537043024,-160542.91587292,0.00023,20]
[365213355,1749537043112,-3575.9443928,0.00023,20]
[365213400,1749537043539,-1077.86833016,0.00021633,2]
[365213402,1749537043548,-591.8084352,0.00021633,2]
[365213404,1749537043557,-919.84502178,0.00021633,2]
[365213406,1749537043566,-1077.86833016,0.00021633,2]
[365213408,1749537043575,-500.0,0.00021633,2]
[365213410,1749537043584,-919.84502178,0.00021633,2]
[365213412,1749537043594,-1077.86833016,0.00021633,2]
[365213414,1749537043603,-500.0,0.00021633,2]
[365213416,1749537043612,-919.84502178,0.00021633,2]
[365213418,1749537043621,-1077.86833016,0.00021633,2]
[365213420,1749537043630,-500.0,0.00021633,2]
[365213422,1749537043639,-1077.86833016,0.00021633,2]
[365213424,1749537043649,-919.84502178,0.00021633,2]
[365213425,1749537043659,-500.0,0.00021633,2]
[365213426,1749537043667,-1077.86833016,0.00021633,2]
[365213427,1749537043677,-919.84502178,0.00021633,2]
[365213428,1749537043686,-500.0,0.00021633,2]
[365213429,1749537043695,-1077.86833016,0.00021633,2]
[365213430,1749537043705,-500.0,0.00021633,2]
[365213431,1749537043714,-1077.86833016,0.00021633,2]
[365213432,1749537043723,-919.84502178,0.00021633,2]
[365213433,1749537043733,-1077.86833016,0.00021633,2]
[365213434,1749537043742,-919.84502178,0.00021633,2]
[365213435,1749537043752,-500.0,0.00021633,2]
[365213436,1749537043761,-1077.86833016,0.00021633,2]
[365213437,1749537043771,-1077.86833016,0.00021633,2]
[365213438,1749537043780,-919.84502178,0.00021633,2]
[365213439,1749537043789,-1077.86833016,0.00021633,2]
[365213440,1749537043799,-919.84502178,0.00021633,2]
[365213441,1749537043808,-1077.86833016,0.00021633,2]
[365213442,1749537043817,-919.84502178,0.00021633,2]
[365213443,1749537043826,-500.0,0.00021633,2]
[365213444,1749537043836,-1077.86833016,0.00021633,2]
[365213445,1749537043845,-500.0,0.00021633,2]
[365213446,1749537043855,-1077.86833016,0.00021633,2]
[365213447,1749537043864,-919.84502178,0.00021633,2]
[365213448,1749537043873,-500.0,0.00021633,2]
[365213449,1749537043883,-1077.86833016,0.00021633,2]
[365213450,1749537043892,-1077.86833016,0.00021633,2]
[365213451,1749537043902,-919.84502178,0.00021633,2]
[365213452,1749537043912,-500.0,0.00021633,2]
[365213453,1749537043921,-1077.86833016,0.00021633,2]
[365213454,1749537043931,-919.84502178,0.00021633,2]
[365213455,1749537043942,-1077.86833016,0.00021633,2]
[365213456,1749537043952,-919.84502178,0.00021633,2]
[365213457,1749537043962,-1077.86833016,0.00021633,2]
[365213458,1749537043971,-919.84502178,0.00021633,2]
[365213459,1749537043980,-1077.86833016,0.00021633,2]
[365213460,1749537043990,-919.84502178,0.00021633,2]
[365213461,1749537043999,-1077.86833016,0.00021633,2]
[365213462,1749537044009,-1077.86833016,0.00021633,2]
[365213463,1749537044019,-1077.86833016,0.00021633,2]
[365213464,1749537044028,-919.84502178,0.00021633,2]
[365213465,1749537044038,-1077.86833016,0.00021633,2]
[365213466,1749537044047,-1077.86833016,0.00021633,2]
[365213467,1749537044056,-919.84502178,0.00021633,2]
[365213468,1749537044066,-919.84502178,0.00021633,2]
[365213469,1749537044075,-1077.86833016,0.00021633,2]
[365213470,1749537044085,-919.84502178,0.00021633,2]
[365213471,1749537044094,-1077.86833016,0.00021633,2]
[365213472,1749537044103,-919.84502178,0.00021633,2]
[365213473,1749537044113,-1077.86833016,0.00021633,2]
[365213474,1749537044123,-1077.86833016,0.00021633,2]
[365213475,1749537044133,-919.84502178,0.00021633,2]
[365213476,1749537044142,-919.84502178,0.00021633,2]
[365213477,1749537044152,-1077.86833016,0.00021633,2]
[365213478,1749537044162,-1077.86833016,0.00021633,2]
[365213479,1749537044171,-164.11610672,0.0002231,2]
[365213480,1749537044180,-929.09639212,0.00023,20]
[365213481,1749537044195,-2014.47550831,0.00023,20]
[365213482,1749537044217,-9065.38361469,0.00023,20]